bitfinex/quotes_ETHUSD_20250223
["timestamp","ask_amount","ask_price","bid_price","bid_amount"]
[1740281578176,4.44304,2760.1,2759.5,0.261]
[1740281579299,4.44304,2760.1,2759.4,0.7969]
[1740281579504,3.62326,2760.0,2759.4,1.0579]
[1740281580008,4.44304,2760.1,2759.5,3.62384]
[1740281580489,4.44304,2760.1,2759.4,4.68187]
[1740281580686,4.44304,2760.1,2759.4,2.42749]
[1740281580989,3.62319,2760.0,2759.4,2.42749]
[1740281581706,3.6233,2760.0,2759.4,2.42749]
[1740281583173,3.62354,2759.8,2759.4,1.0579]
[1740281583701,0.55,2759.9,2759.4,0.261]
[1740281583903,4.17333,2759.9,2759.4,0.261]
[1740281585910,4.17325,2760.0,2759.4,0.261]
[1740281586499,0.55,2760.0,2759.4,0.261]
[1740281586733,3.62333,2759.9,2759.4,0.261]
[1740281587634,4.17321,2760.0,2759.4,3.8849]
[1740281588433,4.17321,2760.0,2759.4,0.261]
[1740281589630,0.55,2760.0,2759.4,0.261]
[1740281589831,3.62332,2759.9,2759.5,0.8014]
[1740281591015,0.55,2760.0,2759.5,0.8014]
[1740281591744,0.7963,2760.4,2759.7,3.62357]
[1740281591904,0.7963,2760.4,2759.6,4.42511]
[1740281591905,3.62279,2760.3,2759.6,4.42511]
[1740281592105,3.89457699,2760.8,2759.9,3.6232]
[1740281592106,3.37559264,2760.8,2759.9,3.6232]
[1740281592306,4.41867,2760.7,2760.0,4.42458]
[1740281592731,0.7963,2760.7,2760.0,0.8014]
[1740281592932,0.55,2760.6,2760.1,3.62299]
[1740281593235,0.7963,2760.7,2760.1,7.24594]
[1740281593439,4.41835,2760.9,2760.3,0.7861]
[1740281593641,3.62214,2760.8,2760.3,0.7861]
[1740281593939,3.62214,2760.8,2760.3,1.0471]
[1740281594342,0.7963,2760.9,2760.3,4.66983]
[1740281594506,4.41834,2760.9,2760.3,1.0471]
[1740281594703,9.69461,2761.1,2760.4,3.62258]
[1740281594903,13.31645,2761.1,2760.4,3.62258]
[1740281595142,3.62189,2761.0,2760.4,3.62258]
[1740281595348,0.55,2761.0,2760.4,3.62258]
[1740281595643,0.55,2761.0,2760.5,3.62252]
[1740281595942,0.8328,2761.1,2760.6,3.62235]
[1740281596639,7.77273264,2761.4,2760.7,0.7793]
[1740281597237,3.62162,2761.2,2760.7,0.7793]
[1740281597875,0.55,2761.3,2760.7,0.7793]
[1740281598232,4.17149,2761.3,2760.7,4.40155]
[1740281599040,3.62123,2761.5,2760.7,0.7793]
[1740281599255,3.62097,2761.7,2761.1,3.62172]
[1740281599467,4.41087,2761.8,2761.2,3.6216]
[1740281599821,4.41087,2761.8,2761.1,3.62172]
[1740281600338,3.62075,2761.9,2761.3,3.62145]
[1740281600545,4.16559264,2762.0,2761.3,3.62145]
[1740281600744,7.78627264,2762.0,2761.3,3.62145]
[1740281601143,4.1707,2761.9,2761.3,3.62145]
[1740281601443,3.62091,2761.8,2761.2,4.69153]
[1740281602435,4.1707,2761.9,2761.3,3.6214]
[1740281602622,0.55,2761.9,2761.3,3.6214]
[1740281603324,4.41036,2762.2,2761.6,3.62098]
[1740281603526,0.79,2762.2,2761.5,3.62112]
[1740281603729,4.41015,2762.4,2761.9,0.809]
[1740281604661,3.62031,2762.2,2761.9,0.809]
[1740281604836,3.61389626,2762.2,2761.9,0.809]
[1740281605244,3.0,2762.4,2761.9,0.809]
[1740281605449,3.62024,2762.3,2761.9,0.809]
[1740281605845,0.79,2762.4,2761.9,4.42961]
[1740281606360,4.41004,2762.4,2761.9,0.809]
[1740281606737,0.79,2762.4,2761.9,0.809]
[1740281606932,3.62018,2762.3,2761.9,0.809]
[1740281607161,3.61998,2762.5,2761.9,4.872639]
[1740281607552,3.61993,2762.5,2761.9,4.872639]
[1740281607854,3.61993,2762.5,2762.0,3.62046]
[1740281609349,7.23991,2762.5,2762.0,3.62046]
[1740281609664,3.61993,2762.5,2762.0,0.261]
[1740281609863,3.62004,2762.4,2762.0,0.261]
[1740281610067,3.62004,2762.4,2762.0,1.1364549]
[1740281610428,3.61993,2762.5,2762.0,1.1364549]
[1740281610824,3.62056,2762.0,2761.9,1.512969]
[1740281611029,3.62043,2762.1,2761.9,1.512969]
[1740281611261,0.79,2762.5,2761.9,5.133649]
[1740281611465,7.23975,2762.6,2762.2,0.809]
[1740281611623,3.61987,2762.6,2762.2,0.809]
[1740281612761,7.23973,2762.6,2762.2,0.809]
[1740281613253,3.61986,2762.6,2762.2,0.809]
[1740281613648,3.61992,2762.5,2762.2,0.809]
[1740281617667,3.61978,2762.6,2762.2,0.809]
[1740281618436,3.61977,2762.6,2762.2,0.809]
[1740281618662,3.61995,2762.5,2762.2,0.809]
[1740281619028,3.62007,2762.4,2762.2,0.809]
[1740281619232,3.62007,2762.4,2762.0,0.7853]
[1740281619460,0.7502,2762.5,2762.0,0.7853]
[1740281619772,4.37019,2762.5,2762.0,0.7853]
[1740281620572,4.37011,2762.5,2762.0,0.7853]
[1740281622063,3.61977,2762.6,2762.0,0.7853]
[1740281623366,3.61977,2762.6,2762.0,2.153072]
[1740281623567,3.61995,2762.5,2762.0,2.153072]
[1740281624190,3.62004,2762.4,2762.0,0.7853]
[1740281624791,3.61993,2762.5,2762.0,0.7853]
[1740281626372,1.3002,2762.7,2762.0,4.40586]
[1740281626566,4.91991,2762.7,2762.0,4.40586]
[1740281626878,4.16971,2762.7,2762.0,3.62049]
[1740281627086,4.16971,2762.7,2762.2,0.7853]
[1740281627687,3.61978,2762.6,2762.2,0.7853]
[1740281628371,4.1697,2762.7,2762.2,0.7853]
[1740281631790,4.1697,2762.7,2762.2,1.06354803]
[1740281634672,4.1697,2762.7,2762.6,0.7154587]
[1740281635382,4.16964,2762.7,2762.6,0.7154587]
[1740281636769,0.8980573,2762.9,2762.6,0.7154587]
[1740281636969,0.1478573,2762.9,2762.6,1.4659587]
[1740281640418,0.1478573,2762.9,2762.6,1.22405157]
[1740281640706,0.0978573,2762.9,2762.6,0.7154587]
[1740281640872,3.7173073,2762.9,2762.6,0.7154587]
[1740281641073,3.7173073,2762.9,2762.7,0.7682]
[1740281641074,0.0978573,2762.9,2762.7,0.7682]
[1740281643006,3.7172473,2762.9,2762.7,0.7682]
[1740281643178,3.61951,2762.8,2762.5,0.26]
[1740281643795,4.5463673,2762.9,2762.5,0.26]
[1740281644810,3.61973,2762.7,2762.4,0.7682]
[1740281645111,3.61973,2762.7,2762.4,0.26]
[1740281645307,3.61959,2762.8,2762.4,0.26]
[1740281645486,3.61967,2762.7,2762.4,0.26]
[1740281645687,3.61964,2762.7,2762.4,0.26]
[1740281646083,0.9269573,2762.9,2762.4,0.26]
[1740281646291,3.61951,2762.8,2762.4,0.26]
[1740281647614,3.61951,2762.8,2762.4,1.1146808]
[1740281648219,0.0978573,2762.9,2762.5,0.7682]
[1740281649981,3.7172573,2762.9,2762.5,0.7682]
[1740281651679,3.61952,2762.8,2762.5,0.7682]
[1740281652217,0.0978573,2762.9,2762.5,0.7682]
[1740281652401,3.7173073,2762.9,2762.5,0.7682]
[1740281653188,0.0978573,2762.9,2762.5,4.38804]
[1740281653508,0.0978573,2762.9,2762.5,1.31850408]
[1740281653682,0.0978573,2762.9,2762.5,0.7682]
[1740281654500,0.0978573,2762.9,2762.5,4.38808]
[1740281654920,0.0978573,2762.9,2762.5,0.7682]
[1740281655092,0.0978573,2762.9,2762.8,0.755]
[1740281656095,0.0978573,2762.9,2762.8,4.37451]
[1740281656284,0.0978573,2762.9,2762.8,5.173925]
[1740281657217,0.0978573,2762.9,2762.8,1.554415]
[1740281657418,0.0978573,2762.9,2762.8,0.755]
[1740281663201,3.7172373,2762.9,2762.4,6.4665]
[1740281663406,3.7172373,2762.9,2762.4,10.08653]
[1740281664423,3.7172373,2762.9,2762.4,9.82653]
[1740281664605,3.7172373,2762.9,2762.5,1.242653]
[1740281665308,3.7172373,2762.9,2762.5,0.982653]
[1740281665632,3.7172373,2762.9,2762.5,1.242653]
[1740281669336,0.0978573,2762.9,2762.5,1.242653]
[1740281669527,3.7173473,2762.9,2762.5,0.26]
[1740281669833,3.61951,2762.8,2762.5,0.26]
[1740281672203,4.41935,2762.7,2762.4,5.39]
[1740281673034,8.1365173,2762.9,2762.4,5.39]
[1740281673238,4.5170273,2762.9,2762.4,5.39]
[1740281673944,3.61957,2762.8,2762.4,5.39]
[1740281674304,3.61971,2762.7,2762.4,5.39]
[1740281674506,0.8975573,2762.9,2762.4,5.39]
[1740281674808,3.61952,2762.8,2762.4,5.39]
[1740281675026,7.23912,2762.8,2762.4,5.39]
[1740281675937,3.61952,2762.8,2762.4,5.39]
[1740281676339,3.61966,2762.7,2762.4,5.39]
[1740281676944,3.61952,2762.8,2762.4,5.39]
[1740281677142,3.61952,2762.8,2762.4,6.4264898]
[1740281679645,3.61952,2762.8,2762.4,6.6864898]
[1740281680348,3.61985,2762.6,2762.4,5.39]
[1740281682845,3.6199,2762.5,2762.4,5.39]
[1740281684247,0.0978573,2762.9,2762.5,0.7539]
[1740281684445,3.7173673,2762.9,2762.5,0.7539]
[1740281685744,0.0978573,2762.9,2762.5,0.7539]
[1740281685945,3.7172373,2762.9,2762.5,0.7539]
[1740281687144,3.6196,2762.8,2762.5,0.7539]
[1740281687347,0.0978573,2762.9,2762.5,0.7539]
[1740281687552,0.0978573,2762.9,2762.7,4.37354]
[1740281687844,0.0978573,2762.9,2762.7,4.37347]
[1740281689550,0.0478573,2762.9,2762.7,4.37347]
[1740281698659,0.0478573,2762.9,2762.7,0.7539]
[1740281700661,3.61951,2762.8,2762.6,5.39]
[1740281702565,3.61951,2762.8,2762.5,0.26]
[1740281702983,0.0478573,2762.9,2762.6,3.61975]
[1740281703857,0.0478573,2762.9,2762.5,1.269376]
[1740281704840,4.4424,2762.8,2762.5,0.26]
[1740281705048,3.61985,2762.6,2762.3,5.65]
[1740281705852,3.61985,2762.6,2762.3,5.39]
[1740281706061,7.23972,2762.6,2762.3,5.39]
[1740281706870,3.61993,2762.5,2762.3,5.39]
[1740281707068,3.62017,2762.3,2762.1,0.8236]
[1740281707367,3.62052,2762.1,2761.8,0.26]
[1740281707573,3.6209,2761.8,2761.6,7.393]
[1740281707735,3.62118,2761.6,2761.2,0.8236]
[1740281707935,3.62118,2761.6,2761.2,1.70496]
[1740281708135,3.62088,2761.8,2761.2,1.97371806]
[1740281708336,3.62115,2761.6,2761.2,1.97371806]
[1740281709170,3.62115,2761.6,2761.2,1.70496]
[1740281709671,5.26001544,2761.6,2761.2,0.26]
[1740281709972,3.6213,2761.5,2761.2,0.26]
[1740281710367,10.49892544,2762.4,2760.9,0.8236]
[1740281710368,2.46166544,2761.4,2760.9,0.8236]
[1740281710673,3.62151,2761.3,2760.9,0.26]
[1740281711441,0.8228,2761.4,2760.9,0.26]
[1740281711641,3.62156,2761.3,2760.9,0.26]
[1740281711971,3.62156,2761.3,2760.8,5.39]
[1740281712171,3.62156,2761.3,2760.8,5.65]
[1740281712850,3.62171,2761.2,2760.8,0.26]
[1740281713050,3.62189,2761.0,2760.8,0.26]
[1740281713350,3.62189,2761.0,2760.6,0.8236]
[1740281713351,3.62215,2760.8,2760.7,0.26]
[1740281714755,8.04612,2760.9,2760.7,0.26]
[1740281714942,4.424,2760.9,2760.7,0.26]
[1740281715145,0.802,2760.9,2760.7,0.26]
[1740281715652,4.42403,2760.9,2760.7,0.26]
[1740281716179,0.802,2760.9,2760.7,0.26]
[1740281716743,4.42406,2760.9,2760.7,0.26]
[1740281718667,0.802,2760.9,2760.7,0.26]
[1740281720378,3.62197,2761.0,2760.7,0.26]
[1740281720547,3.62213,2760.8,2760.7,0.26]
[1740281720750,3.62233,2760.7,2760.3,0.26]
[1740281721175,3.62279,2760.3,2759.9,6.1814]
[1740281721372,3.62309,2760.1,2760.0,0.26]
[1740281721675,4.44993,2760.2,2760.0,0.26]
[1740281721883,3.62305,2760.1,2760.0,0.26]
[1740281723971,0.827,2760.2,2760.0,0.26]
[1740281724880,4.44944,2760.6,2760.1,0.7914]
[1740281725676,8.07191,2760.6,2760.1,0.7914]
[1740281725873,4.44944,2760.6,2760.1,0.7914]
[1740281726282,8.07193,2760.6,2760.1,0.7914]
[1740281726883,3.62263,2760.5,2760.1,0.7914]
[1740281727087,4.44941,2760.6,2760.0,0.26]
[1740281728092,3.62253,2760.5,2760.0,0.26]
[1740281728451,7.00386384,2760.4,2759.8,0.26]
[1740281728787,3.62349,2759.8,2759.6,0.26]
[1740281732190,3.62349,2759.8,2759.5,0.26]
[1740281732387,4.45051,2759.8,2759.4,0.7914]
[1740281732585,3.62367,2759.7,2759.4,0.26]
[1740281732788,3.72495291,2759.7,2759.4,0.26]
[1740281733181,3.72486291,2759.7,2759.4,0.26]
[1740281735568,0.10128291,2759.7,2759.4,0.26]
[1740281735889,4.45047,2759.8,2759.4,0.26]
[1740281736395,3.72457741,2759.7,2759.4,0.26]
[1740281737307,0.10098741,2759.7,2759.4,0.26]
[1740281737504,0.7746,2760.1,2759.4,1.64384]
[1740281737707,4.39772,2760.1,2759.4,5.26776]
[1740281737911,0.10114382,2760.0,2759.4,5.26776]
[1740281739010,3.62333,2759.9,2759.4,1.64384]
[1740281739183,3.72441512,2759.9,2759.4,1.64384]
[1740281740683,0.10108512,2759.9,2759.4,1.64384]
[1740281740885,0.10108512,2759.9,2759.4,5.26778]
[1740281741192,8.02085,2760.1,2759.4,1.64384]
[1740281741193,0.10103298,2759.8,2759.4,1.64384]
[1740281741425,3.62332,2759.9,2759.4,1.64384]
[1740281741586,0.10098084,2759.7,2759.4,1.64384]
[1740281741786,3.62332,2759.9,2759.4,1.64384]
[1740281742008,0.1009287,2759.6,2759.4,1.64384]
[1740281742320,3.62332,2759.9,2759.4,1.64384]
[1740281742615,0.10087655,2759.5,2759.4,5.26781]
[1740281742816,8.0209,2760.1,2759.4,5.26781]
[1740281743113,8.02085,2760.1,2759.4,5.26781]
[1740281743312,0.7746,2760.1,2759.5,2.239083]
[1740281743516,0.10113725,2760.0,2759.6,3.62364]
[1740281743812,3.62293,2760.2,2759.6,3.62364]
[1740281743992,0.10114422,2759.9,2759.6,3.62364]
[1740281744323,3.62293,2760.2,2759.6,3.62364]
[1740281745016,0.10131416,2760.1,2759.9,0.8109]
[1740281745213,6.0337,2760.5,2760.0,4.066603]
[1740281746183,9.65629,2760.5,2759.9,0.8109]
[1740281746384,4.41629,2760.5,2759.9,0.8109]
[1740281747813,4.41629,2760.5,2759.9,4.4342]
[1740281748017,0.7937,2760.5,2759.9,0.8109]
[1740281748231,0.10151649,2760.4,2760.0,3.62309]
[1740281748393,0.10151649,2760.4,2760.0,4.428815]
[1740281748600,8.03833,2760.7,2760.0,4.428815]
[1740281748929,0.10172701,2760.3,2760.0,4.428815]
[1740281749224,3.72431335,2760.6,2760.0,0.805725]
[1740281749429,0.10167489,2760.2,2760.0,0.805725]
[1740281749629,3.62243,2760.6,2760.0,0.805725]
[1740281749794,0.10162277,2760.1,2760.0,0.805725]
[1740281749996,3.62243,2760.6,2760.0,0.805725]
[1740281750226,0.10162277,2760.1,2760.0,4.428875]
[1740281750528,0.7937,2761.0,2760.1,0.8109]
[1740281750703,4.4154,2761.2,2760.6,0.8109]
[1740281750909,0.10222348,2760.9,2760.6,4.4333]
[1740281751110,4.4154,2761.2,2760.6,4.87663]
[1740281751318,4.4154,2761.2,2760.6,0.8109]
[1740281751516,3.62209,2760.9,2760.3,9.01268]
[1740281751876,3.62264,2760.5,2760.3,5.39]
[1740281752146,3.62264,2760.5,2760.0,0.8109]
[1740281752302,0.1023765,2760.4,2760.0,0.8109]
[1740281752503,3.62246,2760.6,2760.0,5.442495]
[1740281752715,0.10242861,2760.5,2760.0,5.442495]
[1740281753601,3.72498861,2760.5,2760.0,1.819325]
[1740281754726,3.62286,2760.3,2759.9,5.65]
[1740281754903,4.41798,2760.4,2759.9,5.65]
[1740281755099,0.10227226,2760.2,2759.9,5.65]
[1740281755331,0.10232438,2760.3,2759.9,5.65]
[1740281755635,4.41798,2760.4,2759.9,6.68730889]
[1740281755835,0.10227226,2760.2,2759.9,6.68730889]
[1740281756034,4.41798,2760.4,2759.9,6.68730889]
[1740281756234,4.41798,2760.4,2759.6,3.62363]
[1740281756235,3.62319,2760.0,2759.6,0.7957]
[1740281756439,3.62293,2760.2,2759.7,0.26]
[1740281756635,0.10206337,2759.9,2759.7,0.26]
[1740281756825,3.62293,2760.2,2759.6,4.67939]
[1740281757026,0.10201123,2759.8,2759.6,6.048716]
[1740281757226,3.62293,2760.2,2759.6,6.048716]
[1740281757532,0.10195909,2759.7,2759.6,6.048716]
[1740281757737,3.62307,2760.1,2759.6,2.425026]
[1740281757939,0.1021155,2760.0,2759.6,2.425026]
[1740281759447,3.62295,2760.2,2759.7,0.2425026]
[1740281759640,3.62295,2760.2,2759.6,6.048736]
[1740281759818,0.10216763,2760.1,2759.6,6.048736]
[1740281760018,0.10216763,2760.1,2759.6,9.672376]
[1740281760541,0.10216763,2760.1,2759.6,6.048666]
[1740281760743,3.62295,2760.2,2759.6,6.048666]
[1740281761238,0.10216763,2760.1,2759.6,6.048666]
[1740281761544,3.62295,2760.2,2759.7,0.6048666]
[1740281761734,0.10216763,2760.1,2759.7,0.6048666]
[1740281761932,0.10216763,2760.1,2759.6,6.048666]
[1740281762742,3.62295,2760.2,2759.6,2.425026]
[1740281762945,3.62308,2760.1,2759.6,2.425026]
[1740281763109,3.72524763,2760.1,2759.6,2.425026]
[1740281764019,4.44372,2760.0,2759.6,2.425026]
[1740281764220,3.62339,2759.9,2759.4,6.9463165]
[1740281764520,3.72567691,2759.9,2759.7,0.26]
[1740281765236,0.10228691,2759.9,2759.7,0.26]
[1740281769954,0.10228691,2759.9,2759.4,6.2163]
[1740281770156,0.10228691,2759.9,2759.5,0.26]
[1740281770329,3.62332,2759.9,2759.5,0.26]
[1740281770660,0.10188032,2759.8,2759.5,0.26]
[1740281772362,3.62325,2760.0,2759.5,0.26]
[1740281772771,0.10193244,2759.9,2759.5,0.26]
[1740281772971,0.10193244,2759.9,2759.5,1.37551354]
[1740281773137,3.72525244,2759.9,2759.5,1.37551354]
[1740281773538,0.10193244,2759.9,2759.5,1.37551354]
[1740281775573,0.10193244,2759.9,2759.4,5.39]
[1740281775574,0.8166,2759.8,2759.4,5.39]
[1740281775751,3.62379,2759.6,2759.4,5.65]
[1740281776157,0.10148757,2759.5,2759.4,5.39]
[1740281776358,3.62379,2759.6,2759.4,5.39]
[1740281776536,4.44013,2759.8,2759.4,5.39]
[1740281776735,0.10148757,2759.5,2759.4,6.165]
[1740281776945,4.43986,2760.0,2759.4,6.165]
[1740281777137,0.10148757,2759.5,2759.4,6.165]
[1740281777438,3.62332,2759.9,2759.4,6.165]
[1740281777641,0.10148757,2759.5,2759.4,6.165]
[1740281777972,3.62332,2759.9,2759.4,6.165]
[1740281778478,0.10164398,2759.8,2759.4,6.165]
[1740281778845,0.10164398,2759.8,2759.4,10.793763]
[1740281779172,0.8166,2760.0,2759.4,7.169923]
[1740281779358,0.8166,2760.0,2759.5,3.62373]
[1740281779686,0.1016961,2759.9,2759.5,3.62373]
[1740281779855,0.1016961,2759.9,2759.4,10.793823]
[1740281780056,4.40362,2760.2,2759.6,3.62369]
[1740281780258,0.10164398,2759.8,2759.4,9.7889]
[1740281780571,0.10159185,2759.7,2759.4,13.41279]
[1740281780749,0.10159185,2759.7,2759.6,3.62371]
[1740281780954,0.7806,2760.2,2759.7,0.7941]
[1740281781150,4.40362,2760.2,2759.7,0.7941]
[1740281781363,0.1010849,2760.1,2759.7,0.7941]
[1740281782676,3.7241449,2760.1,2759.7,0.7941]
[1740281783288,0.1010849,2760.1,2759.7,0.7941]
[1740281784156,3.7241449,2760.1,2759.7,0.7941]
[1740281784984,0.1010849,2760.1,2759.7,0.7941]
[1740281786580,3.7241449,2760.1,2759.7,0.7941]
[1740281787018,3.62325,2760.0,2759.7,0.7941]
[1740281787311,4.40413,2759.8,2759.4,6.1841]
[1740281787608,3.72388285,2759.7,2759.4,6.1841]
[1740281788071,0.10030285,2759.7,2759.4,6.1841]
[1740281788277,4.40382,2760.0,2759.4,6.1841]
[1740281788514,0.10025072,2759.6,2759.4,6.1841]
[1740281788693,0.10025072,2759.6,2759.4,7.190912]
[1740281788877,4.40382,2760.0,2759.4,7.190912]
[1740281789088,4.40382,2760.0,2759.4,9.80807]
[1740281789089,0.10019858,2759.5,2759.4,9.80807]
[1740281789277,4.40361,2760.2,2759.5,3.62382]
[1740281789496,0.7806,2760.2,2759.6,3.62362]
[1740281790099,0.7806,2760.2,2759.5,3.62382]
[1740281790399,4.40355,2760.2,2759.5,3.62377]
[1740281790776,8.02654,2760.2,2759.5,3.62377]
[1740281790977,0.10051136,2760.1,2759.5,3.62377]
[1740281791282,0.10051136,2760.1,2759.5,4.992959]
[1740281791809,0.10051136,2760.1,2759.5,1.369189]
[1740281792177,0.10051136,2760.1,2759.4,6.1841]
[1740281792377,3.62328,2760.0,2759.4,6.1841]
[1740281792713,0.10040711,2759.9,2759.4,6.1841]
[1740281793176,3.62354,2759.8,2759.4,6.1841]
[1740281793410,3.62373,2759.6,2759.4,5.39]
[1740281793911,0.10013896,2759.5,2759.4,5.39]
[1740281794750,3.72400896,2759.5,2759.2,0.26]
[1740281795039,0.10006055,2759.4,2759.2,0.26]
[1740281795413,3.62417,2759.3,2758.9,5.39]
[1740281795620,3.72416529,2759.3,2758.9,5.65]
[1740281795826,0.09999529,2759.3,2758.9,6.29505]
[1740281798128,0.09999529,2759.3,2758.9,6.03505]
[1740281798308,3.72411529,2759.3,2758.9,5.39]
[1740281798509,3.72411529,2759.3,2758.9,5.65]
[1740281798708,3.62412,2759.3,2758.9,5.65]
[1740281799036,0.09956645,2759.2,2758.9,5.65]
[1740281799242,3.62412,2759.3,2758.9,5.65]
[1740281799440,0.09951429,2759.1,2758.9,5.65]
[1740281799642,3.62425,2759.2,2758.9,5.65]
[1740281799806,0.0989952,2759.0,2758.9,5.65]
[1740281800008,3.62425,2759.2,2758.9,0.26]
[1740281800229,0.09904736,2759.1,2758.9,0.26]
[1740281800429,4.38436,2759.6,2759.0,0.7913]
[1740281800708,0.7606,2759.6,2758.9,0.26]
[1740281800913,3.62405,2759.4,2758.9,0.26]
[1740281801215,0.7606,2759.3,2758.9,0.26]
[1740281801419,4.38475,2759.3,2758.9,0.26]
[1740281801630,3.62426,2759.2,2758.9,0.26]
[1740281802125,0.7606,2759.3,2758.9,0.26]
[1740281802334,0.09904736,2759.1,2758.9,0.26]
[1740281802534,4.38444,2759.5,2759.0,0.7913]
[1740281802833,4.38447,2759.5,2759.0,0.7913]
[1740281803641,0.7606,2759.5,2759.0,0.7913]
[1740281804041,0.7606,2759.5,2759.0,4.41576]
[1740281804221,3.62374,2759.6,2759.0,4.41576]
[1740281804858,0.7606,2759.7,2759.0,5.245809]
[1740281805021,0.7606,2759.7,2759.1,3.62434]
[1740281805219,0.7606,2759.7,2759.0,5.245809]
[1740281805421,4.38421,2759.7,2759.0,8.870189]
[1740281805745,4.38421,2759.7,2759.0,5.245769]
[1740281807351,0.7606,2759.7,2759.1,3.62434]
[1740281807741,4.38418,2759.7,2759.0,5.245769]
[1740281808128,4.38418,2759.7,2759.0,5.9868377]
[1740281808571,4.38418,2759.7,2759.1,3.62436]
[1740281809556,4.38418,2759.7,2759.0,5.9868377]
[1740281809757,4.38418,2759.7,2759.0,5.1567887]
[1740281810770,4.38418,2759.7,2759.0,8.7812087]
[1740281810965,8.00784,2759.7,2759.0,5.1567887]
[1740281811369,0.7606,2759.7,2759.1,3.62436]
[1740281812539,0.7606,2759.7,2759.2,3.62421]
[1740281813667,0.7606,2759.7,2759.0,5.1568487]
[1740281813858,4.38426,2759.7,2759.0,4.41578]
[1740281814569,3.62371,2759.6,2759.0,4.41578]
[1740281817189,0.09902468,2759.5,2759.0,4.41578]
[1740281817366,0.09902468,2759.5,2759.0,4.41573]
[1740281817570,0.7606,2759.7,2759.1,3.62437]
[1740281817767,0.09910389,2759.4,2759.0,4.41579]
[1740281817977,4.38421,2759.7,2759.0,4.41579]
[1740281818168,0.09885383,2759.3,2759.0,4.41579]
[1740281818491,0.09880167,2759.2,2759.1,0.5402622]
[1740281818691,4.38421,2759.7,2759.1,0.5402622]
[1740281818892,0.09880167,2759.2,2759.0,4.41579]
[1740281819191,4.38421,2759.7,2759.0,4.41579]
[1740281819385,0.09874952,2759.1,2759.0,4.41579]
[1740281819599,4.38421,2759.7,2759.0,4.41579]
[1740281819993,0.09901027,2759.6,2759.0,4.41579]
[1740281820160,0.09901027,2759.6,2759.0,5.3185192]
[1740281820492,0.09901027,2759.6,2759.0,8.9429392]
[1740281820701,0.09901027,2759.6,2759.0,5.3184492]
[1740281821366,0.09901027,2759.6,2759.2,3.62422]
[1740281821571,0.7606,2759.7,2759.3,3.62407]
[1740281821767,0.0959011,2759.5,2759.4,3.62397]
[1740281821969,0.7685,2760.0,2759.4,3.62397]
[1740281822180,0.0959011,2759.5,2759.4,4.348774]
[1740281822387,0.7685,2760.0,2759.6,3.62368]
[1740281822573,0.7685,2760.0,2759.7,0.26]
[1740281824480,3.62332,2759.9,2759.7,0.26]
[1740281825121,0.0890034,2759.8,2759.6,0.26]
[1740281825617,0.7685,2759.7,2759.4,5.39]
[1740281825782,4.39217,2759.7,2759.4,5.39]
[1740281825980,3.62384,2759.5,2759.4,5.39]
[1740281826182,4.48158104,2759.5,2759.4,5.39]
[1740281827307,4.48158104,2759.5,2759.1,0.26]
[1740281828214,3.62398,2759.4,2759.1,0.26]
[1740281828510,0.08892002,2759.3,2759.1,0.26]
[1740281828714,3.62398,2759.4,2759.1,0.26]
[1740281828888,0.08886787,2759.2,2759.1,0.26]
[1740281829089,3.62398,2759.4,2759.1,0.26]
[1740281829292,0.08886787,2759.2,2759.1,0.26]
[1740281829807,4.39261,2759.3,2759.1,0.26]
[1740281830018,0.08886787,2759.2,2759.1,0.26]
[1740281830180,4.39261,2759.3,2759.1,0.26]
[1740281830374,0.08886787,2759.2,2759.1,0.26]
[1740281830580,0.7685,2759.3,2759.1,0.26]
[1740281830800,0.08886787,2759.2,2759.1,0.26]
[1740281831030,4.39263,2759.3,2759.1,0.26]
[1740281831236,0.08886787,2759.2,2759.1,0.26]
[1740281831423,4.39263,2759.3,2759.1,0.26]
[1740281831608,0.08886787,2759.2,2759.1,0.26]
[1740281831814,4.39263,2759.3,2759.1,0.26]
[1740281832024,0.08886787,2759.2,2759.1,0.26]
[1740281832223,4.39263,2759.3,2759.1,0.26]
[1740281832447,0.08886787,2759.2,2759.1,0.26]
[1740281832645,0.7685,2759.3,2759.1,0.26]
[1740281832948,0.08886787,2759.2,2759.1,0.26]
[1740281833314,0.7685,2759.3,2759.1,0.26]
[1740281833540,0.08886787,2759.2,2759.1,0.26]
[1740281833914,0.7685,2759.3,2759.1,0.26]
[1740281834231,0.08886787,2759.2,2759.1,0.26]
[1740281834450,0.7685,2759.3,2759.1,0.26]
[1740281834753,0.08886787,2759.2,2759.1,0.26]
[1740281835127,3.62423,2759.2,2759.1,0.26]
[1740281835438,0.08869054,2759.2,2759.1,0.26]
[1740281835634,4.39269,2759.3,2759.1,0.26]
[1740281835835,0.08869054,2759.2,2759.1,0.26]
[1740281836040,4.39269,2759.3,2759.1,0.26]
[1740281836229,0.08869054,2759.2,2759.1,0.26]
[1740281836415,4.39269,2759.3,2759.1,0.26]
[1740281836615,0.08869054,2759.2,2759.1,0.26]
[1740281836950,4.39269,2759.3,2759.1,0.26]
[1740281837159,0.08869054,2759.2,2758.8,3.62468]
[1740281837319,0.08869054,2759.2,2759.0,0.26]
[1740281837520,4.39269,2759.3,2759.0,0.26]
[1740281837720,0.08863839,2759.1,2759.0,0.26]
[1740281837920,4.39269,2759.3,2759.0,0.26]
[1740281838121,0.08863839,2759.1,2759.0,0.26]